Workbook

Sheet Sheet1
A1: 2025年生产部5月接收处置记录统计表 | R1: 自产废物
A2: 废物名称 | B2: 危废代码 | C2: 形态 | D2: 上月结存 | E2: 本月接收量 | F2: 处置量及工艺 | J2: 库存量 | K2: 1#库 | L2: 2#库 | M2: 干化 | N2: 罐区 | O2: 料坑 | R2: 废物名称 | S2: 上月结存 | T2: 本月产生量 | U2: 包数 | V2: 本月处理 | Y2: 库存 | Z2: 备注 | AA2: 存储位置
F3: 固废焚烧 | G3: 废液焚烧 | H3: 清洗大桶 | I3: 污泥干化 | K3: 1#库 | L3: 2#库 | M3: 干化 | N3: 罐区 | O3: 料坑 | V3: 焚烧处置 | W3: 液体炉 | X3: 拉运
A4: 反应残渣2 | B4: 271-001-02 | C4: 固态 | D4: 0 | E4: =3 -> 3 | J4: =D4+E4-F4-G4-H4-I4 -> 3 | K4: 3 | P4: =K4+L4+M4+N4+O4 -> 3 | R4: 炉渣（回转窑） | S4: 242.935 | T4: =165.865-20.44-17.095-0.802 -> 127.528 | U4: 104 | X4: 93.495 | Y4: =S4+T4-V4-X4-W4 -> 276.968
A5: 过滤介质 | B5: 271-003-02 | C5: 固态 | D5: 0 | E5: =1.92 -> 1.92 | J5: 1.92 | K5: 1.92 | P5: 1.92 | R5: 飞灰（回转窑） | S5: 26.203 | T5: 22.505 | U5: 54 | X5: 39.08 | Y5: 9.628
A6: 废盐 | B6: 271-005-02 | C6: 固态 | D6: 5 | F6: =5 -> 5 | J6: 0 | P6: 0 | R6: 飞灰（废液炉） | S6: 3.625 | T6: 6.11 | U6: 15 | X6: 6.05 | Y6: 3.685
A7: 一般废药品 | B7: 900-002-03 | C7: 固态 | D7: 0 | E7: =11.42 -> 11.42 | J7: 11.42 | L7: 11.42 | P7: 11.42 | R7: 废油渣/泥 | S7: 0 | Y7: 0 | Z7: 精馏切水后剩下的罐底泥
A8: 磷化铝、杀虫剂 | B8: 900-003-04 | C8: 固态 | D8: 0 | E8: =0.14+0.14 -> 0.28 | F8: =0.14+0.14 -> 0.28 | J8: 0 | P8: 0 | R8: 含油污水 | S8: 0 | T8: 1.31 | V8: 1.31 | Y8: 0 | Z8: 蒸汽清洗过程 | AA8: 2#库
A9: 废有机溶剂及废物 | B9: 900-402-06 | C9: 液态 | D9: 59.6385 | E9: =1.8+3.221+0.1+6.8642+21.02+5.52+2.158 -> 40.6832 | F9: =0.01+0.012+0.015+0.012+3.6337 -> 3.6827 | G9: =0.086 -> 0.086 | J9: 96.553 | L9: 96.553 | P9: 96.553 | R9: 废商标 | S9: 0 | T9: 0.445 | V9: 0.445 | Y9: 0 | Z9: 除商标 | AA9: 2#库
A10: 废有机溶剂 | B10: 900-404-06 | C10: 液态 | D10: 27.232 | E10: =4.9811+1.357+0.525 -> 6.8631 | F10: =4.9811 -> 4.9811 | G10: =17.39 -> 17.39 | J10: 11.724 | L10: 11.724 | P10: 11.724 | R10: 废残液 | S10: 0 | T10: 1.13 | V10: 1.13 | Y10: 0 | Z10: 抽残液 | AA10: 2#库
A11: 废有机溶剂 | B11: 900-407-06 | C11: 液态 | D11: 164.1105 | E11: =17.13 -> 17.13 | G11: =14.3925 -> 14.3925 | J11: 166.848 | L11: 166.848 | P11: 166.848 | R11: 废渣 | S11: 0 | T11: 0.43 | V11: 0.43 | Y11: 0 | Z11: 清洗过程 | AA11: 2#库
A12: 油污水 | B12: 251-001-08 | C12: 液态 | D12: 703.19 | J12: 703.19 | N12: 703.19 | P12: 703.19 | R12: 漆渣 | S12: 0 | Y12: 0 | Z12: 清洗过程
A13: 废溶剂油 | B13: 291-001-08 | C13: 半固态 | D13: 15.3 | E13: =18.98 -> 18.98 | J13: 34.28 | K13: =34.28-15 -> 19.28 | O13: =15 -> 15 | P13: 34.28 | R13: 污水厂污泥 | S13: 0 | T13: 1.9 | V13: 1.9 | Y13: 0 | Z13: 水处理后产生的污泥 | AA13: 2#库
A14: 含油岩屑 | B14: 071-002-08 | C14: 半固态 | D14: 74.28 | F14: =7.75+11.08+7.75+2.21+4.43+11.08+5.54+5.54+12.22+6.68 -> 74.28 | J14: 0 | P14: 0 | R14: 废清洗剂 | S14: 0 | Y14: 0 | Z14: 清洗剂清洗过程
A15: 研磨泥 | B15: 900-200-08 | C15: 固态 | D15: 0 | E15: =16.08+13.4475 -> 29.5275 | F15: =16.08 -> 16.08 | J15: 13.4475 | L15: 13.4475 | P15: 13.4475
A16: HW08废油 | B16: 900-200-08 | C16: 液态 | D16: 99.383 | J16: 99.383 | K16: 4.923 | N16: 94.46 | P16: 99.383
A17: 废煤油 | B17: 900-201-08 | C17: 液态 | D17: 0.62 | J17: 0.62 | N17: 0.62 | P17: 0.62
A18: 废润滑脂 | B18: 900-209-08 | C18: 半固态 | D18: 0 | E18: =0.042 -> 0.042 | F18: =0.042 -> 0.042 | J18: 0
A19: 水处理浮渣及污泥 | B19: 900-210-08 | C19: 半固态 | D19: 302.252 | E19: =3.474+1.16+16.12+0.082 -> 20.836 | F19: =23.16+5.042+3.474+1.16 -> 32.836 | J19: 290.252 | K19: 14.592 | L19: 24.52 | N19: 251.14 | P19: =K19+L19+M19+N19+O19 -> 290.252
A20: 废机油、含油废水 | B20: 900-210-08 | C20: 液态 | D20: 94.1 | E20: =32.06+6.74 -> 38.8 | F20: =10+19.22 -> 29.22 | G20: =4 -> 4 | J20: 99.68 | K20: 26.64 | L20: 58.74 | N20: 14.3 | P20: 99.68
A21: 废油泥 | B21: 900-210-08 | C21: 固态 | D21: 70.48 | E21: =8.389+6.5065+8.426 -> 23.3215 | F21: =15+16.82+8.389+6.5065 -> 46.7155 | J21: 47.086 | K21: 38.66 | L21: 8.426 | P21: 47.086
A22: 废白土 | B22: 900-213-08 | C22: 固态 | D22: 0 | E22: =28.6+26.4+30.92 -> 85.92 | F22: =10+10+8.6+26.4 -> 55 | J22: 30.92 | L22: 30.92 | P22: 30.92
A23: 废矿物油 | B23: 900-214-08 | C23: 液态 | D23: 85.89114 | E23: =0.037+0.18+0.11+0.0826 -> 0.4096 | J23: 86.30074 | N23: 86.30074 | P23: 86.30074
A24: 废矿物油 | B24: 900-217-08 | C24: 液态 | D24: 53.35755 | E24: =5.32+0.41 -> 5.73 | J24: 59.08755 | N24: 59.08755 | P24: 59.08755
A25: 废液压油 | B25: 900-218-08 | C25: 液态 | D25: 52.395 | E25: =0.1+7.96 -> 8.06 | J25: 60.455 | N25: 60.455 | P25: 60.455
A26: 废冷冻机油 | B26: 900-219-08 | C26: 液态 | D26: 3.58 | E26: =11.24 -> 11.24 | J26: 14.82 | N26: 14.82 | P26: 14.82
A27: 废矿物油与含矿物油废物 | B27: 900-220-08 | C27: 液态 | D27: 2.809 | J27: 2.809 | N27: 2.809 | P27: 2.809
A28: 废矿物油 | B28: 900-249-08 | C28: 液态 | D28: 157.82638 | E28: =0.4+0.1+13.48+0.665 -> 14.645 | G28: =11.1+15.1+1.64+16 -> 43.84 | J28: 128.63138 | L28: 9.09 | N28: 119.54138 | P28: 128.63138
A29: 废矿物油、废油桶 | B29: 900-249-08 | C29: 固态 | D29: 32.036 | E29: =0.44+0.19+0.503+0.6+6.42 -> 8.153 | F29: =0.896+0.44+18.12+0.015+10.118+0.015+0.075+0.04+0.07+6.42 -> 36.209 | J29: 3.98 | L29: 3.98 | P29: 3.98
A30: 废矿物油、油泥 | B30: 900-249-08 | C30: 半固态 | D30: 0 | E30: =0.086 -> 0.086 | F30: =0.086 -> 0.086 | J30: 0 | P30: 0
A31: 废水、乳化液 | B31: 900-007-09 | C31: 液态 | D31: 129.2945 | E31: =3.424+0.569+0.92+0.1335 -> 5.0465 | F31: =0.876 -> 0.876 | G31: =0.6245+4.774+3.424+5.012 -> 13.8345 | J31: 119.6305 | L31: =119.6305-20 -> 99.6305 | O31: 20 | P31: 119.6305
A32: 废乳化液 | B32: 900-006-09 | C32: 液态 | D32: 183.551 | E32: =16.2+0.015+0.34+7.34+1.6 -> 25.495 | F32: =0.34+0.015 -> 0.355 | G32: =13.2+14.8+6.54+17.82+5+1.88 -> 59.24 | J32: 149.451 | L32: 149.451 | P32: 149.451
A33: 砂轮沫 | B33: 900-006-09 | C33: 固态 | D33: 4.008 | E33: =1.612 -> 1.612 | F33: =4.008 -> 4.008 | J33: 1.612 | L33: 1.612 | P33: 1.612
A34: 废焦油渣 | B34: 252-005-11 | C34: 固态 | D34: 20 | F34: =10 -> 10 | J34: 10 | K34: =10-10 -> 0 | O34: 10 | P34: 10
A35: 废水汽提塔排重质烃 | B35: 252-009-11 | C35: 液态 | D35: 20.44 | E35: =16.46 -> 16.46 | J35: 36.9 | L35: 36.9 | P35: 36.9
A36: 煤焦油、釜残 | B36: 900-013-11 | C36: 固态 | D36: 2.29 | J36: 2.29 | L36: 2.29 | P36: 2.29
A37: 煤焦油 | B37: 900-013-11 | C37: 液态 | D37: 10.055 | E37: =6.1025+19.96 -> 26.0625 | F37: =4.482 -> 4.482 | J37: 31.6355 | K37: 11.6755 | L37: 19.96 | P37: 31.6355
A38: 釜残 | B38: 900-013-11 | C38: 半固态 | D38: 348.832 | E38: =28.98+29.16+30.92 -> 89.06 | F38: =5+10+10+20.9 -> 45.9 | J38: 391.992 | K38: =391.992-30 -> 361.992 | O38: 30 | P38: 391.992
A39: 煤焦油 | B39: 451-003-11 | C39: 液态 | D39: 52.02 | E39: =93.4+19.34 -> 112.74 | G39: =6.7+16.8+22.2+22.67 -> 68.37 | J39: 96.39 | L39: =96.39 -> 96.39 | P39: 96.39
A40: 漆渣 | B40: 900-250-12 | C40: 固态 | D40: 0 | E40: =19.835 -> 19.835 | J40: 19.835 | K40: 19.835 | P40: 19.835
A41: 漆渣 | B41: 900-250-12 | C41: 半固态 | D41: 0.76 | E41: =0.334 -> 0.334 | F41: =0.76+0.334 -> 1.094 | J41: 0 | P41: 0
A42: 废彩涂液 | B42: 900-252-12 | C42: 液态 | D42: 57.9 | J42: 57.9 | K42: 57.9 | P42: 57.9
A43: 废漆渣 | B43: 900-252-12 | C43: 固态 | D43: 138.281 | E43: =72.127+7.44+30.2765+39.6+7.84+3.5075+14.02+25.806+58.192+11.5705+8.75 -> 279.1295 | F43: =12.2285+31.576+27.6435+29.9545+24.65+18.905+21.845+13.11+15.5425+31.078-10.27 -> 216.263 | J43: 201.1475 | K43: =201.1475-60 -> 141.1475 | O43: 60 | P43: 201.1475
A44: 漆渣 | B44: 900-252-12 | C44: 半固态 | D44: 10.27 | F44: 10.27 | J44: 0 | P44: 0
A45: 油墨渣子、油漆 | B45: 900-299-12 | C45: 半固态 | D45: 0 | E45: =0.01+0.5 -> 0.51 | F45: =0.01+0.5 -> 0.51 | J45: 0 | P45: 0
A46: 硒鼓墨盒 | B46: 900-299-12 | C46: 固态 | D46: 0.02 | E46: =0.041+0.93 -> 0.971 | F46: =0.02+0.041+0.93 -> 0.991 | J46: 0 | P46: 0
A47: 油漆渣 | B47: 900-299-12 | C47: 液态 | D47: 2.4 | J47: 2.4 | K47: 2.4 | P47: 2.4
A48: 发泡废料，废胶水 | B48: 900-014-13 | C48: 半固态 | D48: 0.75 | E48: =0.05 -> 0.05 | F48: =0.75+0.05 -> 0.8 | J48: 0 | P48: 0
A49: 发泡废料，废胶水 | B49: 900-014-13 | C49: 固态 | D49: 15.0605 | E49: =16.84+13.22+12.11+9.1 -> 51.27 | F49: =7.64+16.84+4.9605+13.22 -> 42.6605 | J49: 23.67 | K49: 23.67 | P49: 23.67
A50: 废树脂 | B50: 900-015-13 | C50: 固态 | D50: 0 | E50: =2.613 -> 2.613 | F50: =2.613 -> 2.613 | J50: 0 | P50: 0
A51: 有机树脂废物 | B51: 900-016-13 | C51: 半固态 | D51: 5.76 | E51: =5.336 -> 5.336 | J51: 11.096 | K51: 11.096 | P51: 11.096
A52: PBL真空废液 | B52: 265-101-13 | C52: 液态 | D52: 0 | E52: =14+17.52 -> 31.52 | J52: 31.52 | K52: 31.52 | P52: 31.52
A53: 镀铜溶液 | B53: 336-062-17 | C53: 液态 | D53: 0 | E53: =10.16 -> 10.16 | J53: 10.16 | L53: 10.16 | P53: 10.16
A54: 磷化污泥 | B54: 336-064-17 | C54: 固态 | D54: 0 | E54: =11.1+4.76 -> 15.86 | F54: =11.1+2 -> 13.1 | J54: 2.76 | L54: 2.76 | P54: 2.76
A55: 金属表面处理污泥 | B55: 336-064-17 | C55: 半固态 | D55: 0 | E55: =0.5 -> 0.5 | J55: 0.5 | L55: 0.5 | P55: 0.5
A56: 金属表面处理污泥 | B56: 336-064-17 | C56: 液态 | D56: 20.34 | E56: =2.65 -> 2.65 | F56: =2.65 -> 2.65 | G56: =18.84+1.5 -> 20.34 | J56: 0 | P56: 0
A57: 污泥 | B57: 336-069-17 | C57: 液态 | D57: 25.58 | J57: 25.58 | L57: 25.58 | P57: 25.58
A58: 污泥 | B58: 336-069-17 | C58: 固态 | D58: 0 | E58: =16.1 -> 16.1 | J58: 16.1 | L58: 16.1 | P58: 16.1
A59: 废碱液 | B59: 251-015-35 | C59: 液态 | D59: 10.65 | E59: =12.92 -> 12.92 | G59: =10.65 -> 10.65 | J59: 12.92 | L59: 12.92 | P59: 12.92
A60: 废碱泥 | B60: 251-015-35 | C60: 半固态 | D60: 16.84 | J60: 16.84 | L60: 16.84 | P60: 16.84
A61: 废碱液 | B61: 900-352-35 | C61: 液态 | D61: 7.24 | F61: =3+4.24 -> 7.24 | J61: 0 | P61: 0
A62: 含酚废水 | B62: 261-070-39 | C62: 液态 | D62: 268.16 | G62: =26.18 -> 26.18 | J62: 241.98 | N62: 241.98 | P62: 241.98
A63: 含油废物 | B63: 900-041-49 | C63: 固态 | D63: 306.5112 | E63: =17.815+8.0015+6.327+6.256+11.7725+28.5557+47.691+22.7055+11.459+27.032+19.7075+25.911+0.94+6.2815 -> 240.4552 | F63: =42.5105+52.0755+13.43+23.0357+0.175+14.791+16.326+12.0555+41.9542+32.347+19.24 -> 267.9404 | H63: =1.814+9.855+5.02+4.16 -> 20.849 | J63: 258.177 | K63: =253.351-100 -> 153.351 | L63: 4.826 | O63: 100 | P63: 258.177
A64: 废酸碱袋 | B64: 900-042-49 | C64: 固态 | D64: 0 | E64: =0.239+0.214+0.157+0.26+0.152+0.237 -> 1.259 | F64: =0.239+0.214+0.157+0.26+0.152 -> 1.022 | J64: 0.237 | K64: 0.237 | P64: 0.237
A65: 污泥 | B65: 772-006-49 | C65: 固态 | D65: 0 | E65: =14.34+10.459+0.17 -> 24.969 | F65: =14.34+10.459+0.17 -> 24.969 | J65: 0 | P65: 0
A66: 废活性炭 | B66: 900-039-49 | C66: 固态 | D66: 5.34 | E66: =1.42+19.423+0.944+1.7695+2.157+0.12+1.16+2.13+2.0185 -> 31.142 | F66: =5.34+1.42+13.815+0.105+6.327+2.12+0.16+1.7695 -> 31.0565 | J66: 5.4255 | O66: 5.4255 | P66: 5.4255
A67: 废水污泥 | B67: 900-046-49 | C67: 固态 | D67: 0 | E67: =0.918 -> 0.918 | F67: =0.918 -> 0.918 | J67: 0 | P67: 0
A68: 过期化学药品 | B68: 900-047-49 | C68: 固态 | D68: 3.5139 | E68: =0.0928+1.227+0.248+0.1002+0.003 -> 1.671 | F68: =2.94+1.8937+0.248+0.1002+0.003 -> 5.1849 | J68: =D68+E68-F68-G68-H68-I68 -> 0 | P68: 0
A69: 乙腈、异丙酮、废液 | B69: 900-047-49 | C69: 液态 | D69: 42.5193 | E69: =3.292+2.382+5.3256+1.6897+7.6622+3.776+0.3275+15.242+9.025+4.27+1.08+3.51885 -> 57.59085 | F69: =1.322+0.907+2.382+0.175+0.12+0.3275 -> 5.2335 | G69: =3.1248+11.341+11.4453+1.512+1.6897+10.1+8.762 -> 47.9748 | J69: =D69+E69-F69-G69-H69-I69 -> 46.90185 | L69: 46.90185 | P69: 46.90185
A70: 过期药品 | B70: 900-999-49 | C70: 固态 | D70: 0 | E70: =8.3 -> 8.3 | F70: =8.3 -> 8.3 | J70: =D70+E70-F70-G70-H70-I70 -> 0 | P70: 0
A71: 过期面膜原料、残液 | B71: 900-999-49 | C71: 液态 | D71: 30.4 | G71: =9+4 -> 13 | J71: =D71+E71-F71-G71-H71-I71 -> 17.4 | L71: 17.4 | P71: 17.4
A72: 小计： | D72: 3742.26747 | E72: =SUM(E4:E71) -> 1439.58645 | F72: =SUM(F4:F71) -> 1012.8491 | G72: =SUM(G4:G71) -> 339.2978 | H72: =SUM(H4:H71) -> 20.849 | I72: =SUM(I4:I71) -> 0 | J72: =D72+E72-F72-G72-H72-I72 -> 3808.85802 | K72: =SUM(K4:K71) -> 923.839 | L72: 995.88985 | M72: 0 | N72: 1648.70367 | O72: 240.4255 | P72: 3808.85802
A73: 合计： | F73: =F72+G72+H72 -> 1372.9959
